Cogmind - Beta 10.2 @@@ ROGUE MODE // 2021.01.14 @ 10:21:08 Player: Demise Result: Destroyed by Enhanced Grunt with Neutron Cannon Performance ------------- Evolutions (3) 1500 Regions Visited (11) 2200 Robots Destroyed (159) 795 Value Destroyed (4081) 4081 Prototype IDs (242) 4840 Alien Tech Used (0) 0 Bonus (3018) 3018 TOTAL SCORE: 16434 Bonus ------- High Alert Combat Kills 104 Follower Combat Kills 146 Aligned with FarCom 300 Met Data Miner 300 Used Data Conduit 3000 Friendly Fire -832 Cogmind --------- Core Integrity 0/700 Matter 270/300 Energy 83/100 System Corruption 0% Temperature Cool (12) Movement Hovering (350) Ox6 Location -7/Data Miner Parts ------- > --- POWER (1) -------- (None) > --- PROPULSION (2) --- Cooled Antigrav System > --- UTILITY (8) ------ High-capacity Storage Unit High-capacity Storage Unit High-capacity Storage Unit High-capacity Storage Unit Advanced Signal Interpreter Improved Propulsion Shielding Hacking Suite > --- WEAPON (2) ------- (None) > --- INVENTORY (36) --- Makeshift Power Source Makeshift Power Source Light Fission Core Cold Fusion Reactor Cooled Antigrav System Cooled Antigrav System Advanced Heat Sink Advanced Heat Sink High-capacity Storage Unit High-capacity Storage Unit High-capacity Storage Unit High-capacity Matter Pod (163) Experimental Sensor Array Improved Salvage Targeting Computer Advanced Core Analyzer Advanced Transmission Jammer Improved Cloaking Device Improved Propulsion Shielding Improved Light Armor Plating EX Chip 1 System Shield Advanced Component Analysis Suite Corruption Screen System Backup Module System Backup Module Advanced Recalibrator Shock Rifle Shock Rifle Flak Gun Mini Assault Cannon Improved Grenade Launcher Master Tearclaws Longsword +1 Peak State ------------ > --- POWER ------------ Cooled Antimatter Reactor > --- PROPULSION ------- Cooled Antigrav System Combat Antigrav System > --- UTILITY ---------- High-capacity Storage Unit High-capacity Storage Unit High-capacity Storage Unit High-capacity Storage Unit Advanced Signal Interpreter Hacking Suite Ghost Barrier Advanced Recalibrator > --- WEAPON ----------- AWS/EX-DEC > --- INVENTORY -------- Enhanced Nuclear Core Makeshift Power Source Makeshift Power Source Cold Fusion Reactor Gravmag Array Cooled Antigrav System Cooled Antigrav System Advanced Heat Sink High-capacity Storage Unit High-capacity Storage Unit High-capacity Storage Unit High-capacity Matter Pod Experimental Sensor Array Improved Salvage Targeting Computer Advanced Core Analyzer Advanced Transmission Jammer Improved Cloaking Device Hardened Medium Armor Plating Improved Light Armor Plating Layered Light Armor Plating EX Chip 1 System Shield Advanced Component Analysis Suite Corruption Screen System Backup Module System Backup Module Shock Rifle Shock Rifle Autogun Flak Gun Flak Gun Mini Assault Cannon Improved Grenade Launcher Longsword +1 Deploy-a-Sentry [Rating: 89] Favorites ----------- Power Enhanced Nuclear Core Engine Cooled Ion Engine Power Core Enhanced Nuclear Core Reactor Cooled Antimatter Reactor Propulsion Light Treads Treads Light Treads Leg Carbon-fiber Leg Wheel Compact Wheel Hover Unit Combat Antigrav System Utility High-capacity Storage Unit Device Experimental Sensor Array Storage High-capacity Storage Unit Processor Advanced Signal Interpreter Hackware Hacking Suite Protection Core Shielding Weapon Heavy Assault Rifle Energy Gun Shock Rifle Energy Cannon Light EM Pulse Cannon Ballistic Gun Heavy Assault Rifle Ballistic Cannon Mini Assault Cannon Launcher Rocket Launcher Special Weapon Mining Laser Slashing Weapon Longsword +1 Build | -11 -10 -10 -9 -9 -9 -8 -8 -7 -7 -7 -7 ------- Run | Scr Mat Min Mat Min Exi Min Mat Fac Low Low Dat Slots Evolved 6 | . . . 2 . . . 2 2 . . . Power . | . . . . . . . . . . . . Propulsion . | . . . . . . . . . . . . Utility 6 | . . . 2 . . . 2 2 . . . Weapon . | . . . . . . . . . . . . Parts Attached 227 | 7 27 4 27 2 17 14 22 83 11 9 4 Power 24 | 1 2 1 3 . 2 1 2 11 1 . . Engine 9 | 1 2 . 3 . 1 . . 2 . . . Core 6 | . . 1 . . . . . 4 1 . . Reactor 9 | . . . . . 1 1 2 5 . . . Propulsion 27 | 2 3 . 10 1 2 6 1 2 . . . Treads 19 | 2 3 . 10 1 2 1 . . . . . Leg 1 | . . . . . . 1 . . . . . Wheel 1 | . . . . . . 1 . . . . . Hover 6 | . . . . . . 3 1 2 . . . Flight . | . . . . . . . . . . . . Utility 88 | 2 5 . 5 1 4 2 8 49 4 6 2 Device 38 | . . . . . . . 2 31 2 3 . Storage 12 | 2 4 . . . 3 2 . . . 1 . Processor 4 | . 1 . . . . . 1 1 . 1 . Hackware 7 | . . . 1 . . . 1 5 . . . Protection 27 | . . . 4 1 1 . 4 12 2 1 2 Artifact . | . . . . . . . . . . . . Weapon 88 | 2 17 3 9 . 9 5 11 21 6 3 2 Energy Gun 19 | 2 1 . 1 . 2 3 5 3 2 . . Energy Cannon 10 | . 10 . . . . . . . . . . Ballistic Gun 38 | . . 3 7 . 5 1 6 12 2 1 1 Ballistic Cannon 3 | . . . . . . . . 1 1 1 . Launcher 3 | . . . . . 2 1 . . . . . Special Weapon 7 | . 6 . 1 . . . . . . . . Impact Weapon . | . . . . . . . . . . . . Slashing Weapon 8 | . . . . . . . . 5 1 1 1 Piercing Weapon . | . . . . . . . . . . . . Special Melee Weapon . | . . . . . . . . . . . . Unidentified Prototypes 11 | . . . 3 . 1 2 1 4 . . . Parts Lost 29 | . 1 1 3 3 5 2 2 2 3 1 6 Power 3 | . . . . . 1 . . . 1 . 1 Propulsion 6 | . . . 1 1 2 1 . . . . 1 Utility 9 | . . . 2 2 . . 1 . 1 1 2 Weapon 11 | . 1 1 . . 2 1 1 2 1 . 2 Highest Loss Streak 6 | . 1 1 1 2 3 1 1 1 3 1 6 Average Slot Usage (%) 96 | . 99 100 99 96 87 88 98 99 99 99 97 Engine 4 | . 14 10 9 11 8 . . . . . . Core 2 | . . 3 1 . . . . 4 6 7 6 Reactor 2 | . . . . . 2 11 8 2 . . . Treads 11 | . 28 28 22 21 22 9 . . . . . Hover 7 | . . . . . . 5 17 15 15 15 14 Device 2 | . . . . . . . . 7 6 6 5 Storage 28 | . 27 28 22 22 23 35 36 30 30 30 30 Processor 3 | . . . . . . . 2 7 7 14 14 Hackware 6 | . . . 10 . . . 6 11 15 7 7 Protection 5 | . . . 11 19 8 . 8 2 . . 1 Energy Gun 3 | . 4 . . . . 15 3 1 10 . . Energy Cannon 2 | . 20 7 . . . . . . . . . Ballistic Gun 12 | . . 20 21 22 20 6 14 11 3 8 7 Naked Turns . | . . . . . . . . . . . . Heaviest Build 168 | 17 77 77 88 88 162 168 161 164 166 147 148 Greatest Support 59 | 40 40 40 40 40 40 50 59 50 50 50 50 Greatest Overweight (x) 50 | . 1 1 2 2 4 10 3 50 3 2 2 Average Overweight (x) 2 | . . 1 1 1 2 7 2 2 2 2 2 Largest Inventory Capacity 40 | 8 20 20 20 20 40 40 36 36 36 36 36 Average Capacity 29 | 7 17 20 20 20 30 38 36 36 36 36 36 Most Carried 40 | 6 20 20 20 20 40 40 36 36 36 36 36 Average Carried 27 | 3 13 19 19 19 18 38 35 35 35 35 35 Final Capacity 40 | 8 20 20 20 20 40 36 36 36 36 36 36 Final Carried 40 | 6 20 20 20 20 40 36 36 36 36 36 34 Class Distribution -------------------- 87% | Hauler-Mutant 9% | Scavenger-Mutant Dominant Class ---------------- Hauler-Mutant | -10/Materials Hauler-Mutant | -10/Mines Scavenger-Mutant | -9/Materials Hauler-Mutant | -9/Mines Hauler-Mutant | -9/Exiles Hauler-Mutant | -8/Mines Hauler-Mutant | -8/Materials Hauler-Mutant | -7/Factory Hauler-Mutant | -7/Lower Caves Hauler-Mutant | -7/Lower Caves Hauler-Mutant | -7/Data Miner Resources | -11 -10 -10 -9 -9 -9 -8 -8 -7 -7 -7 -7 ----------- Run | Scr Mat Min Mat Min Exi Min Mat Fac Low Low Dat Matter Collected 6039 | 308 302 91 738 184 665 684 678 1589 272 528 . Remotely . | . . . . . . . . . . . . Salvage Created 6172 | 207 656 276 1408 173 294 249 967 1423 221 298 . Parts 356 | 18 37 14 89 12 49 13 38 66 9 11 . Haulers Intercepted 10 | . 2 . 5 . . . 2 1 . . . Recyclers Shooed 4 | 1 1 . 1 . . . . 1 . . . Parts Field Recycled . | . . . . . . . . . . . . Retrieved Matter . | . . . . . . . . . . . . Parts Self-Destructed 4 | . . . . . . . . . 4 . . Prevented . | . . . . . . . . . . . . Kills | -11 -10 -10 -9 -9 -9 -8 -8 -7 -7 -7 -7 ------- Run | Scr Mat Min Mat Min Exi Min Mat Fac Low Low Dat Combat Hostiles Destroyed 99 | . 12 7 23 8 5 6 14 17 6 1 . Melee 2 | . . . 1 . . . . 1 . . . Guns 77 | . 5 2 22 8 4 4 11 16 4 1 . Cannons 11 | . 5 5 . . . . . . 1 . . AOE 4 | . . . . . 1 2 1 . . . . Classes Destroyed 20 | 3 6 . 2 1 2 1 . 1 1 3 . Worker 5 | 2 1 . . . . . . 2 . . . Builder 3 | . 1 . 1 . . 1 . . . . . Tunneler 6 | 5 . 1 . . . . . . . . . Hauler 10 | . 2 . 5 . . . 2 1 . . . Recycler 10 | 1 1 . 2 . . 1 1 4 . . . Minesweeper 2 | . . . . . . . . . . 2 . Operator 4 | . 1 1 . . . 1 1 . . . . Turret 1 | . . . . . 1 . . . . . . Watcher 13 | . 3 . 4 . . . 2 4 . . . Swarmer 18 | . 6 3 3 4 . 2 . . . . . Grunt 50 | . 6 4 12 2 . 3 13 7 3 . . Duelist 2 | . . . 1 . . . 1 . . . . Sentry 10 | . . . 7 . . . . 3 . . . Hunter 2 | . . . . . . 1 . . 1 . . Programmer 7 | . . . . . . . . 7 . . . Zionite 8 | . . . . . 8 . . . . . . Samaritan 1 | . . . . . . . . . . 1 . Master Thief 3 | . . . . . . . . . 2 1 . Assembled 6 | . . . . 2 4 . . . . . . Thug 1 | . . . . . . . . 1 . . . Mutant 1 | . . . . . . . . . . 1 . Best Kill Streak 7 | 3 5 5 7 4 6 4 4 4 3 1 . Combat Bots Only 6 | . 3 5 6 4 2 3 4 4 3 1 . Max Kills in Single Turn 2 | 1 2 1 2 1 1 2 1 2 1 1 . Gunslinging 1 | . . . 1 . . . . . . . . Exploded 1 | . . . . . 1 1 1 . . . . Melee 1 | . . . 1 . . . . 1 . . . Uniques/NPCs Destroyed 4 | . . . . . 4 . . . . . . 8R-AWN (-9/Exiles) EX-BIN (-9/Exiles) EX-HEX (-9/Exiles) EX-DEC (-9/Exiles) Combat | -11 -10 -10 -9 -9 -9 -8 -8 -7 -7 -7 -7 -------- Run | Scr Mat Min Mat Min Exi Min Mat Fac Low Low Dat Damage Taken 8389 | . 495 364 1187 531 1081 490 1034 1459 612 39 1097 Core 1287 | . 76 22 110 26 158 55 134 262 165 9 270 Absorbed by Shields . | . . . . . . . . . . . . Core Remaining (%) 61 | 100 . 60 . . . 12 75 . . . . Volleys Fired 578 | 17 71 21 90 29 102 50 59 85 12 40 2 Largest 2 | 2 2 2 2 2 2 2 2 2 2 2 2 Hottest 112 | 100 112 112 100 46 90 90 90 56 56 56 56 Shots Fired 1077 | 34 112 41 168 58 185 95 135 156 40 49 4 Gun 921 | 34 37 27 156 58 169 92 135 156 34 19 4 Cannon 100 | . 50 14 . . . . . . 6 30 . Launcher 19 | . . . . . 16 3 . . . . . Special 37 | . 25 . 12 . . . . . . . . Kinetic 775 | . . 27 156 58 149 76 93 145 18 49 4 Thermal 108 | 34 62 . 12 . . . . . . . . Explosive 19 | . . . . . 16 3 . . . . . Electromagnetic 175 | . 50 14 . . 20 16 42 11 22 . . Robot Hit Streak 27 | 12 12 11 27 5 17 6 9 13 5 1 . Robot Miss Streak 10 | 2 3 1 4 6 4 4 4 6 5 10 . Penetration Max . | . . . . . . . . . . . . Secondary Targets 2 | . . . 2 . . . . . . . . Max Gunslinging Chain 1 | . . . 1 . . . . . . . . Autonomous 40 | . . . . . . . 18 . 22 . . Shots Hit Robots 622 | 22 56 32 116 26 118 52 97 63 24 13 3 Core Hits 343 | 9 22 14 46 9 49 20 39 93 24 16 2 Critical Hits 3 | . . . . . 1 . 1 . . 1 . Critical Kills 1 | . . . . . . . . . . 1 . Critical Parts Destroyed 1 | . . . . . . . 1 . . . . Melee Attacks 43 | . . . . . . . . 14 7 17 5 Impact . | . . . . . . . . . . . . Slashing 43 | . . . . . . . . 14 7 17 5 Piercing . | . . . . . . . . . . . . Sneak Attacks 8 | . . . . . . . . . . 7 1 Combat Hostiles . | . . . . . . . . . . . . Follow-up Attacks . | . . . . . . . . . . . . Damage Inflicted 15161 | 249 1236 671 1805 347 2255 985 1778 2709 726 2072 328 Guns 10549 | 249 274 308 1742 342 1696 596 1590 2426 635 572 119 Cannons 1141 | . 832 235 . . . . . . 74 . . Explosions 1336 | . 34 128 . . 559 389 188 38 . . . Melee 1965 | . . . . . . . . 239 17 1500 209 Ramming 26 | . . . 15 5 . . . 6 . . . Kinetic 8640 | . . 308 1742 342 1564 457 830 2276 430 572 119 Thermal 1247 | 249 404 128 48 . 116 114 188 . . . . Explosive 718 | . . . . . 443 275 . . . . . Electromagnetic 2565 | . 832 235 . . 132 139 760 188 279 . . Impact . | . . . . . . . . . . . . Slashing 1965 | . . . . . . . . 239 17 1500 209 Piercing . | . . . . . . . . . . . . Highest Corruption 3 | . . . . . . 2 . 3 . . . Average Corruption 1 | . . . . . . 1 . 1 . . . Corruption Purged 8 | . . . . . . . . 8 . . . Effects 22 | . . . . . . 11 . 11 . . . Message Errors 5 | . . . . . . 2 . 3 . . . Matter Fused 1 | . . . . . . . . 1 . . . Heat Flow Errors 3 | . . . . . . 3 . . . . . Energy Discharges 4 | . . . . . . . . 4 . . . Data Loss (minor) 5 | . . . . . . 4 . 1 . . . Targeting Errors 3 | . . . . . . 1 . 2 . . . Weapon Failures 1 | . . . . . . 1 . . . . . Overload Shots . | . . . . . . . . . . . . Overflow Damage 909 | . 43 . . . 7 7 26 36 . 749 41 Projectiles 39 | . 39 . . . . . . . . . . Explosions 44 | . 4 . . . 7 7 26 . . . . Melee 826 | . . . . . . . . 36 . 749 41 Knockbacks 3 | . . . . 1 . . . . 2 . . Impact 1 | . . . . 1 . . . . . . . Kinetic 2 | . . . . . . . . . 2 . . Secondary . | . . . . . . . . . . . . Self-Inflicted Damage 123 | . . . . . 31 57 14 21 . . . Shots 6 | . . . . . 2 2 1 1 . . . Rammed 6 | . . . 2 1 . . . 3 . . . Targets Rammed 7 | . . . 3 1 . . . 3 . . . Kicked . | . . . . . . . . . . . . Crushed 1 | . . . 1 . . . . . . . . Highest Temperature 346 | 157 346 174 96 . 96 195 156 157 24 . 37 Average Temperature 59 | 63 88 55 25 . 41 37 31 53 12 . 21 Received Heat Transfer 1746 | . 147 147 405 12 18 9 486 333 45 . 144 Effects 2 | . 2 . . . . . . . . . . Energy Bleed 1 | . 1 . . . . . . . . . . Short Circuit 1 | . 1 . . . . . . . . . . Siege Activations . | . . . . . . . . . . . . Robots Corrupted 6 | . 2 . . . . . 2 1 1 . . Combat Hostiles 5 | . 2 . . . . . 2 . 1 . . Parts Fried 24 | . 8 1 4 . . . 4 2 5 . . Impact Corruptions . | . . . . . . . . . . . . Robots Melted . | . . . . . . . . . . . . Combat Hostiles . | . . . . . . . . . . . . Parts Melted 4 | 2 1 . . . . . . 1 . . . Heat Transferred 2504 | 740 1064 100 100 . 50 200 250 . . . . Parts Sabotaged . | . . . . . . . . . . . . Parts Stolen 3 | . . . . . . . . . 1 2 . Parts Stripped . | . . . . . . . . . . . . Power Chain Reactions 8 | . 1 1 . . 2 1 3 . . . . Missiles Intercepted . | . . . . . . . . . . . . Alert | -11 -10 -10 -9 -9 -9 -8 -8 -7 -7 -7 -7 ------- Run | Scr Mat Min Mat Min Exi Min Mat Fac Low Low Dat Peak Influence 621 | 40 203 187 229 120 . 114 302 621 . . . Initial 58 | . 26 30 21 . . . . 58 . . . Average 136 | 19 83 91 105 21 . 43 138 263 . . . Maximum Alert Level 2 | . 1 . 1 . . . 1 2 . . . Low Security (%) 79 | 100 97 100 91 100 . 100 77 45 . . . Level 1 12 | . 2 . 8 . . . 22 27 . . . Level 2 8 | . . . . . . . . 26 . . . Level 3 . | . . . . . . . . . . . . Level 4 . | . . . . . . . . . . . . Level 5 . | . . . . . . . . . . . . High Security . | . . . . . . . . . . . . Max Security . | . . . . . . . . . . . . Squads Dispatched 18 | . 1 . 3 1 . . 3 10 . . . Investigation 5 | . . . 2 1 . . . 2 . . . Extermination 7 | . . . . . . . . 7 . . . Reinforcement 6 | . 1 . 1 . . . 3 1 . . . Assault . | . . . . . . . . . . . . Garrison . | . . . . . . . . . . . . Intercept . | . . . . . . . . . . . . Construction Impeded . | . . . . . . . . . . . . Haulers Reinforced 1 | . . . . . . . . 1 . . . Stealth | -11 -10 -10 -9 -9 -9 -8 -8 -7 -7 -7 -7 --------- Run | Scr Mat Min Mat Min Exi Min Mat Fac Low Low Dat Distress Signals 3 | . . . 2 . . . 1 . . . . Communications Jammed . | . . . . . . . . . . . . Distress Signals . | . . . . . . . . . . . . Times Spotted 187 | . 19 7 33 9 36 8 33 27 7 4 4 Peak Tracking Total 9 | . 5 3 5 4 9 4 4 2 3 2 4 Tactical Retreats 11 | . . . 1 . 4 2 4 . . . . Traps | -11 -10 -10 -9 -9 -9 -8 -8 -7 -7 -7 -7 ------- Run | Scr Mat Min Mat Min Exi Min Mat Fac Low Low Dat Traps Triggered 4 | . . . . . . . . 4 . . . Indirectly . | . . . . . . . . . . . . Trap Hack Attempts . | . . . . . . . . . . . . Triggered . | . . . . . . . . . . . . Disarmed . | . . . . . . . . . . . . Reprogrammed . | . . . . . . . . . . . . Reused 4 | . . . 2 . 2 . . . . . . Traps Extracted . | . . . . . . . . . . . . Installed 6 | . . . 2 . 3 . . . . . 1 Triggered 2 | . . . 2 . . . . . . . . Exploded 3 | . . . . . 3 . . . . . . Machines | -11 -10 -10 -9 -9 -9 -8 -8 -7 -7 -7 -7 ---------- Run | Scr Mat Min Mat Min Exi Min Mat Fac Low Low Dat Machines Disabled 16 | . . . . . 11 1 2 2 . . . Max in Single Turn 2 | . . . . . 2 1 1 1 . . . Garrison Access 2 | . . . . . . . . 2 . . . Machines Sabotaged . | . . . . . . . . . . . . Garrisons Compromised . | . . . . . . . . . . . . Overloaded Fab Kills . | . . . . . . . . . . . . Fab Network Shutdowns . | . . . . . . . . . . . . Hacking | -11 -10 -10 -9 -9 -9 -8 -8 -7 -7 -7 -7 --------- Run | Scr Mat Min Mat Min Exi Min Mat Fac Low Low Dat Machines Accessed 47 | . 9 . 16 1 2 . 2 13 . . 4 Terminals 25 | . 6 . 11 1 . . 1 6 . . . Fabricators 1 | . . . . . . . . 1 . . . Repair Stations 4 | . 1 . 2 . . . 1 . . . . Recycling Units 6 | . 2 . 2 . . . . 2 . . . Scanalyzers 3 | . . . 1 . . . . 2 . . . Garrison Access 2 | . . . . . . . . 2 . . . Total Hacks 154 | . 24 . 50 2 2 . 6 44 . . 26 Successful 85 | . 12 . 25 . 2 . 4 16 . . 26 Failed 67 | . 11 . 24 2 . . 2 28 . . . Catastrophic 5 | . . . 2 . . . . 3 . . . Database Lockouts 2 | . 1 . 1 . . . . . . . . Manual 77 | . 17 . 34 2 1 . 2 21 . . . Terminals 80 | . 16 . 37 2 . . 2 23 . . . Fabricators 7 | . . . . . . . . 7 . . . Repair Stations 13 | . 4 . 5 . . . 4 . . . . Recycling Units 14 | . 4 . 5 . . . . 5 . . . Scanalyzers 9 | . . . 3 . . . . 6 . . . Garrison Access 3 | . . . . . . . . 3 . . . Terminal Hacks 43 | . 2 . 10 . 2 . . 3 . . 26 Record 12 | . . . . . 1 . . . . . 11 Part Schematic 7 | . . . . . . . . . . . 7 Robot Schematic 5 | . . . . . . . . . . . 5 Robot Analysis 3 | . 1 . 2 . . . . . . . . Prototype ID Bank 6 | . . . 2 . . . . 1 . . 3 Branch Access Points 2 | . 1 . . . . . . 1 . . . Terminal Index 1 | . . . . . . . . 1 . . . Unreport Threat 2 | . . . 2 . . . . . . . . Locate Traps 1 | . . . 1 . . . . . . . . Recall Investigation 1 | . . . 1 . . . . . . . . Hauler Manifests 1 | . . . 1 . . . . . . . . Zone Layout 1 | . . . 1 . . . . . . . . EX-Prototype ID Bank 1 | . . . . . 1 . . . . . . Fabricator Hacks 2 | . . . . . . . . 2 . . . Load Schematic 1 | . . . . . . . . 1 . . . Build 1 | . . . . . . . . 1 . . . Repair Station Hacks 9 | . 1 . 4 . . . 4 . . . . Scan Component 5 | . 1 . 2 . . . 2 . . . . Repair 4 | . . . 2 . . . 2 . . . . Recycling Unit Hacks 2 | . 1 . . . . . . 1 . . . Retrieve Components 2 | . 1 . . . . . . 1 . . . Scanalyzer 5 | . . . 1 . . . . 4 . . . Insert Component 3 | . . . 1 . . . . 2 . . . Analyze 2 | . . . . . . . . 2 . . . Garrison Access Hacks 1 | . . . . . . . . 1 . . . Seal Access 1 | . . . . . . . . 1 . . . Unauthorized Hacks 23 | . 8 . 10 . . . . 5 . . . Terminals 16 | . 6 . 8 . . . . 2 . . . Track 1 | . . . 1 . . . . . . . . Assimilate 2 | . 1 . 1 . . . . . . . . Botnet 10 | . 4 . 5 . . . . 1 . . . Operators 3 | . 1 . 1 . . . . 1 . . . Fabricators 1 | . . . . . . . . 1 . . . Siphon 1 | . . . . . . . . 1 . . . Repair Stations . | . . . . . . . . . . . . Recycling Units 5 | . 2 . 2 . . . . 1 . . . Reject 4 | . 2 . 2 . . . . . . . . Mask 1 | . . . . . . . . 1 . . . Scanalyzers . | . . . . . . . . . . . . Garrison Access 1 | . . . . . . . . 1 . . . Jam 1 | . . . . . . . . 1 . . . Data Cores Recovered . | . . . . . . . . . . . . Used . | . . . . . . . . . . . . Hacking Detections 37 | . 7 . 16 1 . . 2 11 . . . Full Trace Events 6 | . . . 4 1 . . . 1 . . . Feedback Events 1 | . . . 1 . . . . . . . . Hackware Fried 1 | . . . 1 . . . . . . . . Feedback Blocked . | . . . . . . . . . . . . Robot Schematics Acquired 5 | . . . . . . . . . . . 5 Robots Built . | . . . . . . . . . . . . Matter . | . . . . . . . . . . . . Time . | . . . . . . . . . . . . Total Robot Build Rating . | . . . . . . . . . . . . Part Schematics Acquired 9 | . . . . . . . . 2 . . 7 Parts Built 1 | . . . . . . . . 1 . . . Matter 288 | . . . . . . . . 288 . . . Time 102 | . . . . . . . . 102 . . . Total Part Build Rating 8 | . . . . . . . . 8 . . . Parts Repaired 4 | . . . 2 . . . 2 . . . . Time 264 | . . . 48 . . . 216 . . . . Parts Recycled . | . . . . . . . . . . . . Recycled Matter . | . . . . . . . . . . . . Retrieved Matter . | . . . . . . . . . . . . Retrieved Components 10 | . 10 . . . . . . . . . . Parts Scanalyzed 2 | . . . . . . . . 2 . . . Part Schematics Acquired 2 | . . . . . . . . 2 . . . Parts Damaged 1 | . . . . . . . . 1 . . . Bothacking | -11 -10 -10 -9 -9 -9 -8 -8 -7 -7 -7 -7 ------------ Run | Scr Mat Min Mat Min Exi Min Mat Fac Low Low Dat Used RIF Installer . | . . . . . . . . . . . . Robots Hacked . | . . . . . . . . . . . . Non-combat . | . . . . . . . . . . . . Combat . | . . . . . . . . . . . . Robot Hacks Applied . | . . . . . . . . . . . . Relay Couplers Released . | . . . . . . . . . . . . Robots Rewired . | . . . . . . . . . . . . Allies Hacked . | . . . . . . . . . . . . Hacks Repelled . | . . . . . . . . . . . . Allies | -11 -10 -10 -9 -9 -9 -8 -8 -7 -7 -7 -7 -------- Run | Scr Mat Min Mat Min Exi Min Mat Fac Low Low Dat Total Allies 8 | . 1 3 1 . . . . 3 . . . Largest Group 3 | . 1 3 1 1 1 1 . 3 . . . Highest-Rated Group 93 | . 10 40 10 10 10 10 . 93 . . . Highest-Rated Ally 31 | . 10 16 10 10 10 10 . 31 . . . Total Orders 10 | . . 1 . 7 2 . . . . . . STAY 4 | . . . . 3 1 . . . . . . ROAM 1 | . . 1 . . . . . . . . . FOLLOW 5 | . . . . 4 1 . . . . . . Ally Attacks 59 | . . 24 . . 7 . . 28 . . . Total Damage 952 | . . 235 . . 345 . . 372 . . . Kills 4 | . . 2 . . . . . 2 . . . Allies Corrupted 1 | . . . . . . . . 1 . . . Allies Melted . | . . . . . . . . . . . . Turrets Deployed 3 | . . . . . 3 . . . . . . Intel | -11 -10 -10 -9 -9 -9 -8 -8 -7 -7 -7 -7 ------- Run | Scr Mat Min Mat Min Exi Min Mat Fac Low Low Dat Robot Analysis Total 118 | . 1 . 2 . . . . . . . 115 Derelict Logs Recovered 7 | . . 1 . 3 . . . . 2 1 . Drone Launches . | . . . . . . . . . . . . Drone Recoveries . | . . . . . . . . . . . . Exploration | -11 -10 -10 -9 -9 -9 -8 -8 -7 -7 -7 -7 ------------- Run | Scr Mat Min Mat Min Exi Min Mat Fac Low Low Dat Turns Passed 18410 | 197 1566 768 2128 1432 2249 1362 1211 3914 1758 1617 208 Spaces Moved 7416 | 84 705 382 863 678 879 458 348 1396 802 721 100 Core 24 | 4 . . . . . . . 20 . . . Treads 3726 | 80 705 382 863 678 879 139 . . . . . Legs . | . . . . . . . . . . . . Wheels 186 | . . . . . . 186 . . . . . Hover 3480 | . . . . . . 133 348 1376 802 721 100 Flight . | . . . . . . . . . . . . Fastest Speed 50 | 50 160 180 180 180 180 150 181 181 181 181 181 Average Speed 203 | 154 175 180 196 194 212 247 227 233 183 181 181 Slowest Speed 2550 | 160 180 180 200 200 240 320 241 2550 241 181 181 Overloaded Moves . | . . . . . . . . . . . . Propulsion Burnouts . | . . . . . . . . . . . . Robots Hopped . | . . . . . . . . . . . . Cave-ins Triggered . | . . . . . . . . . . . . Exploration Rate (%) 71 | 6 94 91 70 98 89 98 34 31 88 77 76 Regions Visited 11 Branch Regions 7 Pre-discovered Areas 26 | . . . . . 1 . . . . . 25 Known Exits Taken 5 | . 1 1 . . . . . 1 1 1 . Unknown Exits Taken 6 | 1 . . 1 1 1 1 1 . . . . Scrap Searched 11 | . . 1 . 2 . 2 . . 4 2 . Spaces Dug 44 | . 9 . 4 . 6 . . 9 . 15 1 Terrain Destroyed 136 | . 13 2 10 . 19 41 20 9 1 20 1 Melee 15 | . . . . . . . . 9 . 5 1 Projectile 39 | . 13 . 10 . . . . . 1 15 . AOE 82 | . . 2 . . 19 41 20 . . . . Terrain Rammed . | . . . . . . . . . . . . Walls Destroyed . | . . . . . . . . . . . . Machines Disabled . | . . . . . . . . . . . . Actions | -11 -10 -10 -9 -9 -9 -8 -8 -7 -7 -7 -7 --------- Run | Scr Mat Min Mat Min Exi Min Mat Fac Low Low Dat Total 9639 | 115 868 425 1107 736 1088 604 675 1882 1057 965 117 Wait 1004 | . 16 8 84 23 5 20 220 243 213 172 . Move 7405 | 83 704 381 862 677 878 457 347 1395 801 720 100 Hop . | . . . . . . . . . . . . Pick Up 174 | 8 29 5 15 3 49 28 9 16 7 4 1 Fast Attach 39 | 5 6 1 4 . 3 4 6 10 . . . Attach 54 | 2 1 2 6 2 7 4 11 11 5 1 2 Detach 35 | . 4 1 . . 5 2 9 12 1 . 1 Swap 134 | . 20 1 17 . 7 6 5 62 6 8 2 Drop 146 | . 17 5 24 1 29 33 9 18 5 3 2 Fire 578 | 17 71 21 90 29 102 50 59 85 12 40 2 Melee 43 | . . . . . . . . 14 7 17 5 Ram 3 | . . . . . . . . 3 . . . Kick . | . . . . . . . . . . . . Crush 4 | . . . 3 1 . . . . . . . Escape Stasis 13 | . . . . . . . . 13 . . . Rewire . | . . . . . . . . . . . . Trap 7 | . . . 2 . 3 . . . . . 2 Miscellaneous . | . . . . . . . . . . . . Route ------- -11/Scrapyard -10/Materials (discovered 5 exits: *Mat x3 / *Min x2) -10/Mines (discovered 2 exits: *Mat x2) -9/Materials (discovered 4 exits: *Mat x2 / *Min x2) -9/Mines (discovered 3 exits: *Mat x2 / *Exi) -9/Exiles -8/Mines (discovered 2 exits: *Mat x2) -8/Materials -7/Factory (discovered 3 exits: *Fac / *Low x2) -7/Lower Caves (discovered 2 exits: *Low / *Zio) -7/Lower Caves (discovered 2 exits: *Fac / *Dat) -7/Data Miner (discovered 1 exit: *Pro) History --------- Turn | Location | Event 11 | -11/Scrapyard | Discovered new exit (range 15) 198 | -11/Scrapyard | Entered Materials 301 | -10/Materials | Build established: Mutant 409 | -10/Materials | Discovered new exit (range 10) 602 | -10/Materials | Discovered new exit (range 13) 820 | -10/Materials | Build established: Hauler-Mutant 1213 | -10/Materials | Identified exit to Mines 1219 | -10/Materials | Discovered new exit (range 16) 1475 | -10/Materials | Central database locked down 1486 | -10/Materials | Discovered new exit (range 16) 1664 | -10/Materials | Identified exit to Materials 1764 | -10/Materials | Entered Mines 1764 | -10/Mines | Accompanied by 1 ally 1852 | -10/Mines | Discovered exit to Materials (range 9) 1964 | -10/Mines | Found a hidden stash of uninstalled traps 2011 | -10/Mines | Learned Materials machine intel 2035 | -10/Mines | Assisted by bots powering up and referring to "LRC-V3" 2242 | -10/Mines | Discovered exit to Materials (range 5) 2532 | -10/Mines | Entered Materials 2532 | -9/Materials | Evolved 2 slots: Utility x2 2533 | -9/Materials | Loaded intel: 67 machine locations 2575 | -9/Materials | Repaired Lgt. EM Pulse Cannon 3159 | -9/Materials | Discovered new exit (range 8) 3370 | -9/Materials | Repaired Hvy. Assault Rifle 3680 | -9/Materials | Discovered new exit (range 9) 3835 | -9/Materials | Discovered new exit (range 3) 3855 | -9/Materials | Central database locked down 4030 | -9/Materials | Build established: Scavenger-Mutant 4553 | -9/Materials | Hacking Suite fried by hacking feedback 4638 | -9/Materials | Discovered new exit (range 8) 4660 | -9/Materials | Entered Mines 4660 | -9/Mines | Accompanied by 1 ally 4681 | -9/Mines | Met a Derelict bent on vengeance 4832 | -9/Mines | Found a damaged Exp. Sensor Array with a note attached 4837 | -9/Mines | Found Prototype Device 4871 | -9/Mines | Assembled infested the area 5018 | -9/Mines | Learned Materials security intel 5199 | -9/Mines | Discovered new exit (range 8) 5342 | -9/Mines | Learned Materials stockpile data 5366 | -9/Mines | A weapon hastily lodged in a ceiling crevice suddenly fell to the ground 5557 | -9/Mines | Build established: Hauler-Mutant 5587 | -9/Mines | Learned Materials stockpile data 5633 | -9/Mines | Deemed a non-threat by the Exiles lab entrance 5633 | -9/Mines | Discovered new exit (range 5) 5685 | -9/Mines | Discovered new exit (range 9) 5922 | -9/Mines | Received a Rocket Launcher from a helpful Derelict 6092 | -9/Mines | Entered Exiles 6092 | -9/Exiles | Accompanied by 1 ally 6137 | -9/Exiles | Met 8R-AWN 6178 | -9/Exiles | Met EX-HEX 6319 | -9/Exiles | Met EX-DEC 6372 | -9/Exiles | Learned location of Zion (-6) 6510 | -9/Exiles | Discovered new exit (range 10) 6689 | -9/Exiles | Met EX-BIN 6720 | -9/Exiles | Aligned with FarCom system 6722 | -9/Exiles | Given EX-Vault access code 6773 | -9/Exiles | Opened EX-Vault 6786 | -9/Exiles | Found Deploy-a-Sentry 6789 | -9/Exiles | Found Deploy-a-Sentry 6792 | -9/Exiles | Found Deploy-a-Sentry 6798 | -9/Exiles | Found AWS/Autocannon 6803 | -9/Exiles | Found Longsword +1 6850 | -9/Exiles | Warned to stay clear of 0b10 Research branches 7270 | -9/Exiles | Attacked by the Exiles 7358 | -9/Exiles | DAS Turret deployed 7360 | -9/Exiles | DAS Turret deployed 7363 | -9/Exiles | DAS Turret deployed 7403 | -9/Exiles | Core integrity fell below 50% 7435 | -9/Exiles | Lost 3 parts (1p1n1w) 7483 | -9/Exiles | Destroyed 8R-AWN 7756 | -9/Exiles | Destroyed EX-BIN 7795 | -9/Exiles | Destroyed EX-HEX 7849 | -9/Exiles | Destroyed EX-DEC 7924 | -9/Exiles | Found Deploy-a-Sentry 7938 | -9/Exiles | Found Prototype Energy Gun 8341 | -9/Exiles | Stole two prototypes: Longsword +1, Deploy-a-Sentry 8341 | -9/Exiles | Entered Mines 8341 | -8/Mines | Accompanied by 1 ally 8390 | -8/Mines | ME-RLN came to Exiles' defense 8434 | -8/Mines | Core integrity fell below 20% 8756 | -8/Mines | Discovered new exit (range 8) 9406 | -8/Mines | Found Prototype Hackware 9684 | -8/Mines | Discovered new exit (range 9) 9703 | -8/Mines | Entered Materials 9703 | -8/Materials | Evolved 2 slots: Utility x2 9861 | -8/Materials | Identified AWS/EX-DEC 10178 | -8/Materials | Repaired Cld. Antigrav System 10288 | -8/Materials | Repaired Cld. Antimatter Reactor 10902 | -8/Materials | Discovered new exit (range 6) 10914 | -8/Materials | Entered Factory 10914 | -7/Factory | Evolved 2 slots: Utility x2 10914 | -7/Factory | Identified Exp. Sensor Array 11065 | -7/Factory | Discovered new exit (range 11) 11089 | -7/Factory | Identified exit to Factory 12223 | -7/Factory | Allied Derelicts emerged from ambush trap array 12866 | -7/Factory | Identified Ghost Barrier 13383 | -7/Factory | Identified exit to Lower Caves 13848 | -7/Factory | Fabricated Cld. Antigrav System (x1) 14828 | -7/Factory | Entered Lower Caves 14828 | -7/Lower Caves | Spotted PU-UVV(f) 14829 | -7/Lower Caves | Encountered a Master Thief 14835 | -7/Lower Caves | Deploy-a-Sentry stolen by Master Thief 14838 | -7/Lower Caves | Destroyed PU-UVV(f) 14843 | -7/Lower Caves | Spotted CW-G66(f) 14844 | -7/Lower Caves | Encountered a Master Thief 14853 | -7/Lower Caves | Destroyed CW-G66(f) 14940 | -7/Lower Caves | Core integrity fell below 50% 14956 | -7/Lower Caves | Lost 3 parts (1p1u1w) 15112 | -7/Lower Caves | A Derelict revealed a hidden shortcut to a safe place 15117 | -7/Lower Caves | Identified exit to Zion 15558 | -7/Lower Caves | Learned Factory stockpile data 15924 | -7/Lower Caves | Learned Factory trap positions 16527 | -7/Lower Caves | Discovered new exit (range 15) 16584 | -7/Lower Caves | Identified exit to Lower Caves 16586 | -7/Lower Caves | Entered another Lower Caves area 16586 | -7/Lower Caves | Spotted S5-LRT(f) 16586 | -7/Lower Caves | Spotted T9-S48(f) 16587 | -7/Lower Caves | Encountered a Master Thief 16587 | -7/Lower Caves | Encountered a Master Thief 16597 | -7/Lower Caves | Deploy-a-Sentry stolen by Master Thief 16614 | -7/Lower Caves | Destroyed S5-LRT(f) 16640 | -7/Lower Caves | Discovered exit to Factory (range 14) 17613 | -7/Lower Caves | Learned Factory stockpile data 18073 | -7/Lower Caves | Encountered a Warlord checkpoint 18090 | -7/Lower Caves | Discovered new exit (range 9) 18115 | -7/Lower Caves | Identified exit to Data Miner 18203 | -7/Lower Caves | Entered Data Miner 18203 | -7/Data Miner | Discovered new exit (range 6) 18214 | -7/Data Miner | Identified exit to Proximity Caves 18238 | -7/Data Miner | Met Data Miner 18269 | -7/Data Miner | Learned location of Section 7 (-3) 18269 | -7/Data Miner | Acquired the access code to Warlord's prototype stash 18298 | -7/Data Miner | Received God Mode back door access code from Data Miner 18370 | -7/Data Miner | Interfaced with the Data Conduit 18399 | -7/Data Miner | Core integrity fell below 20% 18411 | -7/Data Miner | Destroyed by Enhanced Grunt with Neutron Cannon Last Messages --------------- 18333_ Dropped Dirty Bomb Trap. 18333_ Installed Dirty Bomb Trap. 18368_ Sneak attack on Data Miner. 18368_ Destroyed Gravmag Array. 18368_ Data Miner disappears through a trap door. 18370_ Interfacing with system... Downloaded 115 analysis records. Downloaded 709 prototype IDs. Downloaded central machine database. Downloaded 24 destinations. Downloaded encryption format records. Connection remotely terminated. 18394_ Critical hit. 18400_ Flak Gun destroyed. 18402_ Lyr. Light Armor Plating destroyed. 18406_ Imp. Melee Analysis Suite destroyed. 18407_ Enhanced Grunt Adv. Heat Sink ripped off. 18408_ Enh. Nuclear Core destroyed. 18408_ Master Tearclaws destroyed. 18409_ Cmb. Antigrav System destroyed. Map ----- +----------------------------------------------------+ | | | | | | | | | | | | | | | | | | | | | | | | | | | | | | | | | | | ???????????????????????????????????????????? | | ???????????????????????????????????????????? | | ???????????????????????????????????????????? | | ???????????????????????????????????????????? | | ?????????????????????????????????????####??? | | ??????###############??????###?????### #??? | | ?????""""""""""""" "######?# #????## #??? | | ????""""""""" g "" # # ###### > ##??? | | ????""""""""" g@ ^ g #### | | ????"""""" | | ???""""""" g | | ???"""""" | | ???""""""" | | ????"""""" """"""""""""""""#### | | ????""""""" """"###############??? | | ????""""""" """"###????????????????? | | ?????"""""""" "#####??????????????????? | | ??????######"## "#??????????????????????? | | ???????????#"### "#??????????????????????? | | ???????????#"### "#??????????????????????? | | ???????????#"?# "#??????????????????????? | | ?????????????## "#??????????????????????? | | ?????????????# "#??????????????????????? | | ?????????????### "#??????????????????????? | | ???????????????# "##?????????????????????? | | ??????????????## ""#?????????????????????? | | ???????????#?## ""#?????????????????????? | | ??????????##"#"X ""#?????????????????????? | | ??????????""""" "####??????????????????? | | ??????????""""" X"""""??????????????????? | | ??????????##"#"X "##"#??????????????????? | | ???????????#?## X""""#??????????????????? | | ??????????????## "##"#??????????????????? | +----------------------------------------------------+ Best States ------------- Heat Dissipation 34 Energy Generation 23 Energy Capacity 380 Matter Stores 300 Matter Capacity 300 Sight Range 16 Robot Scan Range 30 Terrain Scan Density 10 Jamming Range 16 Cloak Strength 3 Additional Mass Support 9 Corruption Prevention 20 Armor Coverage 375 Core Shielding 20 Evasion (%) 40 Melee Accuracy 6 Armor Integrity Analysis 33 Recoil Reduction 2 Offensive Hacking 17 Defensive Hacking 27 Item Schematics ----------------- Cld. Antigrav System | -7/Factory | Scanalyzed Exp. Sensor Array | -7/Factory | Scanalyzed Combat Drone Bay | -7/Data Miner | Free Lgt. Regenerative Plating | -7/Data Miner | Free Cmb. Gravmag System | -7/Data Miner | Free Exp. Terrain Scanner | -7/Data Miner | Free Exp. Terrain Scan Processor | -7/Data Miner | Free Tactical Coordination Suite | -7/Data Miner | Free Exp. ECM Suite | -7/Data Miner | Free Robot Schematics ------------------ S-27 Virus | -7/Data Miner | Free G-50 Soldier | -7/Data Miner | Free G-67 Veteran | -7/Data Miner | Free X-72 Disruptor | -7/Data Miner | Free I-36 Angel | -7/Data Miner | Free Fabricated ------------ Cld. Antigrav System | x1 | -7/Factory Alien Tech Used ----------------- None Achievements -------------- None Challenges ------------ None Game ------ Seed GaussStasisChip Manual? 0 Play Time 02:16:02 Cumulative 206.0 hours Start 2021.01.13 @ 18:25:18 End 2021.01.14 @ 10:21:08 Sessions 5 Manual Loads 0 Difficulty Rogue Special Mode None Game No. 189 Rogue 189 Adventurer 0 Explorer 0 Win Type - Total 0 Types 0/0/0/0/0/0/0/0/0 Lore% 59 Gallery% 69 Achievement% 54 Wizard Run 0 Options --------- ASCII 0 Keyboard 1 Movement Numpad Keybinds 0 Fullscreen 1 Font 12/Terminus Map View 83x54 Tactical HUD 1 Map Filters NONE Filters NONE Steam 1 RUN: 29a4a18b-ff82-4fee-86c8-49b90772ece3